bitfinex-derivatives/quotes_BTCF0:USTF0_20251210
["timestamp","ask_amount","ask_price","bid_price","bid_amount"]
[1765342208795,0.0712322,92566.0,92565.0,0.05834229]
[1765342210401,0.0712322,92566.0,92565.0,0.00124229]
[1765342213695,0.0712322,92566.0,92565.0,0.02884229]
[1765342216004,0.0712322,92566.0,92565.0,0.00124229]
[1765342216206,0.0712322,92566.0,92565.0,0.02884229]
[1765342217492,0.0712322,92566.0,92565.0,0.00124229]
[1765342217897,0.0712322,92566.0,92565.0,0.07562229]
[1765342218703,0.0417222,92566.0,92565.0,0.07562229]
[1765342219201,0.0697622,92566.0,92565.0,0.07562229]
[1765342221609,0.0697622,92566.0,92565.0,0.00124229]
[1765342221908,0.0697622,92566.0,92565.0,0.02884229]
[1765342222901,0.0697622,92566.0,92565.0,0.00124229]
[1765342225999,0.12805424,92566.0,92565.0,0.00124229]
[1765342227597,0.12805424,92566.0,92565.0,0.05824229]
[1765342227796,0.12805424,92566.0,92565.0,0.00124229]
[1765342230020,0.0697622,92566.0,92565.0,0.00124229]
[1765342233006,0.0697622,92566.0,92565.0,0.05824229]
[1765342233708,0.0697622,92566.0,92565.0,0.00124229]
[1765342234113,0.0697622,92566.0,92565.0,0.03001229]
[1765342234318,0.12809474,92566.0,92565.0,0.05824229]
[1765342237021,0.0128022,92566.0,92565.0,0.05824229]
[1765342237209,0.0410322,92566.0,92565.0,0.05824229]
[1765342237811,0.03023,92566.0,92565.0,0.05824229]
[1765342238006,0.002,92566.0,92565.0,0.05824229]
[1765342238821,0.46772,92574.0,92566.0,0.0108022]
[1765342239124,0.52416,92574.0,92573.0,0.057]
[1765342239810,0.58249254,92574.0,92573.0,0.057]
[1765342241122,0.58649254,92574.0,92573.0,0.057]
[1765342241318,0.52816,92574.0,92573.0,0.057]
[1765342241520,0.52516,92574.0,92573.0,0.057]
[1765342241716,0.52816,92574.0,92573.0,0.057]
[1765342242127,0.52516,92574.0,92573.0,0.057]
[1765342242419,0.52816,92574.0,92573.0,0.057]
[1765342243124,0.52716,92574.0,92573.0,0.057]
[1765342243324,0.52816,92574.0,92573.0,0.057]
[1765342243915,0.52716,92574.0,92573.0,0.057]
[1765342244122,0.52816,92574.0,92573.0,0.057]
[1765342244826,0.05644,92566.0,92565.0,0.05824229]
[1765342245724,0.0672422,92566.0,92565.0,0.05824229]
[1765342247221,0.02923,92566.0,92565.0,0.05824229]
[1765342247421,0.05744,92566.0,92565.0,0.05924229]
[1765342252827,0.05744,92566.0,92565.0,0.00224229]
[1765342253228,0.05744,92566.0,92565.0,0.03101229]
[1765342254920,0.05744,92566.0,92565.0,0.05859229]
[1765342258734,0.1157502,92566.0,92565.0,0.05859229]
[1765342259427,0.1157502,92566.0,92565.0,0.00224229]
[1765342259629,0.05744,92566.0,92565.0,0.03145229]
[1765342260126,0.05744,92566.0,92565.0,0.05903229]
[1765342260834,0.05744,92566.0,92565.0,0.00224229]
[1765342261036,0.05744,92566.0,92565.0,0.05903229]
[1765342262033,0.05744,92566.0,92565.0,0.03145229]
[1765342262533,0.05744,92566.0,92565.0,0.05903229]
[1765342263037,0.05744,92566.0,92565.0,0.03145229]
[1765342264226,0.05744,92566.0,92565.0,0.05903229]
[1765342265028,0.55819,92566.0,92565.0,0.05903229]
[1765342270344,0.23393141,92566.0,92560.0,0.01692]
[1765342270541,0.0863024,92564.0,92563.0,0.059]
[1765342271644,0.08642969,92564.0,92563.0,0.059]
[1765342272248,0.08742969,92564.0,92563.0,0.059]
[1765342272545,0.08942969,92564.0,92563.0,0.059]
[1765342273543,0.08842969,92564.0,92563.0,0.059]
[1765342273844,0.08942969,92564.0,92563.0,0.059]
[1765342277450,0.08842969,92564.0,92563.0,0.059]
[1765342277650,0.08942969,92564.0,92563.0,0.059]
[1765342278936,0.00312729,92564.0,92563.0,0.059]
[1765342280452,0.00112729,92564.0,92563.0,0.059]
[1765342280654,0.00012729,92564.0,92563.0,0.06]
[1765342281353,0.00012729,92564.0,92563.0,0.059]
[1765342281553,0.00012729,92564.0,92563.0,0.06]
[1765342282453,0.00012729,92564.0,92563.0,0.061]
[1765342286452,0.00012729,92564.0,92563.0,0.06]
[1765342286654,0.00012729,92564.0,92563.0,0.061]
[1765342291456,0.0108013,92574.0,92573.0,0.06771]
[1765342291653,0.05847234,92576.0,92575.0,0.06771]
[1765342291953,0.00016196,92576.0,92575.0,0.06771]
[1765342293659,0.00016196,92576.0,92575.0,0.06871]
[1765342294666,0.00216196,92576.0,92575.0,0.06871]
[1765342295159,0.00016196,92576.0,92575.0,0.06871]
[1765342295357,0.00016196,92576.0,92575.0,0.06971]
[1765342311061,0.0107996,92588.0,92587.0,0.0785097]
[1765342311763,0.0434096,92588.0,92587.0,0.0785097]
[1765342312070,0.0756796,92588.0,92587.0,0.0785097]
[1765342312458,0.0776796,92588.0,92587.0,0.0785097]
[1765342312658,0.06688,92588.0,92587.0,0.0785097]
[1765342313570,0.0776796,92588.0,92587.0,0.0785097]
[1765342313769,0.0766796,92588.0,92587.0,0.0785097]
[1765342313974,0.0945696,92588.0,92587.0,0.0795097]
[1765342314173,0.0945696,92588.0,92587.0,0.06871]
[1765342314774,0.0935696,92588.0,92587.0,0.06871]
[1765342314972,0.0935696,92588.0,92587.0,0.06971]
[1765342315363,0.0935696,92588.0,92587.0,0.06871]
[1765342315575,0.0935696,92588.0,92587.0,0.06971]
[1765342316860,0.0935696,92588.0,92587.0,0.06871]
[1765342317067,0.0935696,92588.0,92587.0,0.06971]
[1765342317776,0.0935696,92588.0,92587.0,0.06871]
[1765342317978,0.0935696,92588.0,92587.0,0.06771]
[1765342318574,0.0955696,92588.0,92587.0,0.06771]
[1765342319467,0.0945696,92588.0,92587.0,0.06771]
[1765342319667,0.0955696,92588.0,92587.0,0.06771]
[1765342320968,0.0945696,92588.0,92587.0,0.06871]
[1765342321169,0.0935696,92588.0,92587.0,0.06871]
[1765342322180,0.00108004,92590.0,92589.0,0.0623]
[1765342322883,0.06035004,92590.0,92589.0,0.0623]
[1765342328783,0.0682002,92583.0,92582.0,0.03162]
[1765342329081,0.0682002,92583.0,92578.0,0.00016205]
[1765342329082,0.0663607,92579.0,92578.0,0.00016205]
[1765342330378,0.0683607,92579.0,92578.0,0.00016205]
[1765342331487,0.0713607,92579.0,92578.0,0.00016205]
[1765342331984,0.05556,92559.0,92558.0,0.0597]
[1765342333480,0.05556,92559.0,92558.0,0.0617]
[1765342334491,0.05556,92559.0,92558.0,0.0637]
[1765342335493,0.05556,92559.0,92558.0,0.004]
[1765342336091,0.05556,92559.0,92558.0,0.03366]
[1765342337795,0.05556,92559.0,92558.0,0.004]
[1765342339188,0.05556,92559.0,92558.0,0.03366]
[1765342339389,0.05556,92559.0,92558.0,0.0637]
[1765342350109,0.05556,92559.0,92558.0,0.03366]
[1765342351202,0.05556,92559.0,92558.0,0.06245]
[1765342376719,0.05556,92559.0,92558.0,0.004]
[1765342377220,0.05556,92559.0,92558.0,0.03106]
[1765342377423,0.05556,92559.0,92558.0,0.06054]
[1765342417549,0.0108022,92566.0,92565.0,0.05482]
[1765342417752,0.0681022,92566.0,92565.0,0.05482]
[1765342417953,0.0108022,92566.0,92565.0,0.05482]
[1765342418753,0.0681022,92566.0,92565.0,0.05482]
[1765342419752,0.0108022,92566.0,92565.0,0.05482]
[1765342420755,0.00016205,92568.0,92567.0,0.05482]
[1765342423657,0.00016205,92568.0,92567.0,0.0656221]
[1765342424245,0.0108003,92582.0,92581.0,0.05482]
[1765342424554,0.0108,92585.0,92584.0,0.05482]
[1765342425955,0.0148,92585.0,92584.0,0.05482]
[1765342426452,0.004,92585.0,92584.0,0.05482]
[1765342427256,0.007,92585.0,92584.0,0.05482]
[1765342428553,0.00678323,92585.0,92584.0,0.05482]
[1765342429458,0.003,92585.0,92584.0,0.05582]
[1765342429766,0.00108004,92590.0,92589.0,0.0656195]
[1765342431260,0.00108004,92590.0,92589.0,0.0666195]
[1765342432063,0.05838004,92590.0,92589.0,0.05582]
[1765342432558,0.05838004,92590.0,92589.0,0.001]
[1765342432753,0.05838004,92590.0,92589.0,0.05682]
[1765342433257,0.03104004,92590.0,92589.0,0.05482]
[1765342433460,0.03204004,92590.0,92589.0,0.05482]
[1765342433958,0.00508004,92590.0,92589.0,0.05482]
[1765342435251,0.00208004,92590.0,92589.0,0.05482]
[1765342435862,0.05842004,92590.0,92589.0,0.05482]
[1765342436162,0.02907004,92590.0,92589.0,0.05482]
[1765342436360,0.05942004,92590.0,92589.0,0.05482]
[1765342437465,0.00308004,92590.0,92589.0,0.05482]
[1765342437664,0.06042004,92590.0,92589.0,0.05482]
[1765342438361,0.05942004,92590.0,92589.0,0.05482]
[1765342438561,0.06142004,92590.0,92589.0,0.05482]
[1765342438964,0.05842004,92590.0,92589.0,0.05482]
[1765342439262,0.06042004,92590.0,92589.0,0.05482]
[1765342439563,0.05942004,92590.0,92589.0,0.05482]
[1765342440063,0.06042004,92590.0,92589.0,0.05482]
[1765342442057,0.00208004,92590.0,92589.0,0.05482]
[1765342442256,0.00308004,92590.0,92589.0,0.05482]
[1765342442967,0.00208004,92590.0,92589.0,0.05482]
[1765342443671,0.00108004,92590.0,92589.0,0.05482]
[1765342444258,0.05842004,92590.0,92589.0,0.05482]
[1765342445368,0.05942004,92590.0,92589.0,0.05482]
[1765342445762,0.05842004,92590.0,92589.0,0.05482]
[1765342445963,0.06042004,92590.0,92589.0,0.05482]
[1765342446668,0.05942004,92590.0,92589.0,0.05482]
[1765342446873,0.00308004,92590.0,92589.0,0.05482]
[1765342447369,0.00208004,92590.0,92589.0,0.05482]
[1765342447667,0.00308004,92590.0,92589.0,0.05482]
[1765342448168,0.00208004,92590.0,92589.0,0.05482]
[1765342448656,0.00108004,92590.0,92589.0,0.05482]
[1765342451452,0.05962004,92590.0,92589.0,0.05482]
[1765342452165,0.05962004,92590.0,92589.0,0.05582]
[1765342452656,0.06062004,92590.0,92589.0,0.05482]
[1765342452852,0.06162004,92590.0,92589.0,0.05482]
[1765342453264,0.06062004,92590.0,92589.0,0.05482]
[1765342454870,0.05962004,92590.0,92589.0,0.05482]
[1765342455569,0.06062004,92590.0,92589.0,0.05482]
[1765342456964,0.05962004,92590.0,92589.0,0.05482]
[1765342457163,0.06062004,92590.0,92589.0,0.05482]
[1765342457566,0.05962004,92590.0,92589.0,0.05482]
[1765342457767,0.06162004,92590.0,92589.0,0.05482]
[1765342457966,0.06262004,92590.0,92589.0,0.05482]
[1765342458165,0.06062004,92590.0,92589.0,0.05482]
[1765342458367,0.06162004,92590.0,92589.0,0.05482]
[1765342459077,0.06162004,92590.0,92581.0,0.09564473]
[1765342459078,0.0693403,92582.0,92581.0,0.09564473]
[1765342459275,0.0693403,92582.0,92581.0,0.05691]
[1765342461568,0.0693403,92582.0,92581.0,0.05791]
[1765342461768,0.0693403,92582.0,92581.0,0.05891]
[1765342461978,0.0693403,92582.0,92581.0,0.05791]
[1765342462172,0.0703403,92582.0,92581.0,0.05791]
[1765342462380,0.0703403,92582.0,92581.0,0.05691]
[1765342462581,0.0713403,92582.0,92581.0,0.05691]
[1765342464179,0.0703403,92582.0,92581.0,0.05691]
[1765342464370,0.0713403,92582.0,92581.0,0.05691]
[1765342464766,0.0693403,92582.0,92581.0,0.05691]
[1765342464966,0.0713403,92582.0,92581.0,0.05691]
[1765342465582,0.0703403,92582.0,92581.0,0.05691]
[1765342465880,0.0713403,92582.0,92581.0,0.05691]
[1765342466583,0.0723403,92582.0,92581.0,0.05691]
[1765342467081,0.0713403,92582.0,92581.0,0.05691]
[1765342467684,0.0703403,92582.0,92581.0,0.05691]
[1765342467979,0.0713403,92582.0,92581.0,0.05691]
[1765342468772,0.0703403,92582.0,92581.0,0.05691]
[1765342468968,0.0713403,92582.0,92581.0,0.05691]
[1765342470678,0.0703403,92582.0,92581.0,0.05691]
[1765342471079,0.0723403,92582.0,92581.0,0.05691]
[1765342471476,0.0693403,92582.0,92581.0,0.05691]
[1765342471680,0.0713403,92582.0,92581.0,0.05691]
[1765342474693,0.0703403,92582.0,92581.0,0.05691]
[1765342474883,0.0713403,92582.0,92581.0,0.05691]
[1765342475186,0.06054,92582.0,92581.0,0.05691]
[1765342475392,0.002,92582.0,92581.0,0.05691]
[1765342476191,0.001,92582.0,92581.0,0.05691]
[1765342476497,0.03182,92582.0,92581.0,0.05691]
[1765342476892,0.03082,92582.0,92581.0,0.05691]
[1765342477487,0.05886,92582.0,92581.0,0.05691]
[1765342477687,0.05786,92582.0,92581.0,0.05691]
[1765342480095,0.03082,92582.0,92581.0,0.05691]
[1765342480488,0.05886,92582.0,92581.0,0.05691]
[1765342480794,0.05786,92582.0,92581.0,0.05691]
[1765342484188,0.0108003,92583.0,92582.0,0.05787]
[1765342484890,0.0406203,92583.0,92582.0,0.05787]
[1765342485399,0.0686603,92583.0,92582.0,0.05787]
[1765342490597,0.0686603,92583.0,92582.0,0.05887]
[1765342491204,0.0686603,92583.0,92582.0,0.05787]
[1765342492303,0.0696603,92583.0,92582.0,0.05787]
[1765342492809,0.0686603,92583.0,92582.0,0.05787]
[1765342493008,0.0696603,92583.0,92582.0,0.05787]
[1765342502412,0.0686603,92583.0,92582.0,0.05787]
[1765342502610,0.0696603,92583.0,92582.0,0.05787]
[1765342504611,0.0686603,92583.0,92582.0,0.05787]
[1765342505413,0.0677798,92586.0,92585.0,0.05814]
[1765342507514,0.0687798,92586.0,92585.0,0.05814]
[1765342508116,0.0697798,92586.0,92585.0,0.05814]
[1765342508614,0.0677798,92586.0,92585.0,0.05814]
[1765342508817,0.0697798,92586.0,92585.0,0.05814]
[1765342509216,0.0687798,92586.0,92585.0,0.05814]
[1765342509602,0.0697798,92586.0,92585.0,0.05814]
[1765342509816,0.0697798,92586.0,92585.0,0.08726983]
[1765342511117,0.002,92586.0,92585.0,0.08726983]
[1765342511312,0.001,92586.0,92585.0,0.05814]
[1765342511516,0.002,92586.0,92585.0,0.05814]
[1765342511907,0.001,92586.0,92585.0,0.05814]
[1765342512109,0.00108004,92590.0,92589.0,0.05576]
[1765342513114,0.00016205,92594.0,92593.0,0.05576]
[1765342513717,0.00016205,92594.0,92593.0,0.066559]
[1765342514621,0.00016205,92594.0,92593.0,0.068559]
[1765342514824,0.0394379,92603.0,92602.0,0.066558]
[1765342515121,0.0849274,92608.0,92607.0,0.05576]
[1765342517619,0.0869274,92608.0,92607.0,0.05576]
[1765342518019,0.0889274,92608.0,92607.0,0.05576]
[1765342518215,0.0889274,92608.0,92607.0,0.0276]
[1765342518420,0.0889274,92608.0,92599.0,0.02907256]
[1765342518421,0.0849282,92600.0,92599.0,0.05576]
[1765342518920,0.0849282,92600.0,92599.0,0.0276]
[1765342519421,0.0849282,92600.0,92599.0,0.05576]
[1765342520125,0.0859282,92600.0,92599.0,0.05576]
[1765342520626,0.0869282,92600.0,92599.0,0.05576]
[1765342522928,0.05737,92599.0,92598.0,0.00016205]
[1765342523123,0.05737,92599.0,92598.0,0.02776205]
[1765342523427,0.05737,92599.0,92598.0,0.05592205]
[1765342524224,0.05837,92599.0,92598.0,0.05592205]
[1765342524424,0.05837,92599.0,92598.0,0.06672045]
[1765342524628,0.02964,92599.0,92598.0,0.06672045]
[1765342525021,0.05813,92599.0,92598.0,0.06672045]
[1765342525218,0.06013,92599.0,92598.0,0.06672045]
[1765342525623,0.06013,92599.0,92598.0,0.05592205]
[1765342526525,0.05913,92599.0,92598.0,0.05592205]
[1765342530624,0.05813,92599.0,92598.0,0.05592205]
[1765342530826,0.06013,92599.0,92598.0,0.05592205]
[1765342531333,0.06013,92599.0,92598.0,0.06672045]
[1765342531630,0.05909,92599.0,92598.0,0.06672045]
[1765342532725,0.002,92599.0,92598.0,0.06672045]
[1765342532932,0.001,92599.0,92598.0,0.06672045]
[1765342533238,0.07444,92608.0,92607.0,0.0582]
[1765342534728,0.07844,92608.0,92607.0,0.0582]
[1765342536538,0.06109,92608.0,92607.0,0.0582]
[1765342536939,0.004,92608.0,92607.0,0.0582]
[1765342541634,0.004,92608.0,92607.0,0.08727256]
[1765342542044,0.00016205,92617.0,92612.0,0.01508]
[1765342542231,0.00107945,92640.0,92639.0,0.0689937]
[1765342542432,0.00107945,92640.0,92639.0,0.1489937]
[1765342542743,0.05730585,92656.0,92655.0,0.0689918]
[1765342542938,0.00021585,92656.0,92655.0,0.0689918]
[1765342543735,0.00021585,92656.0,92655.0,0.0709918]
[1765342543936,0.00016196,92665.0,92655.0,0.0709918]
[1765342543937,0.00016196,92665.0,92664.0,0.0838608]
[1765342544239,0.05709,92682.0,92681.0,0.0689888]
[1765342544836,0.05181078,92682.0,92681.0,0.0689888]
[1765342545548,0.05181078,92682.0,92681.0,0.0582]
[1765342545841,0.05681078,92682.0,92681.0,0.0582]
[1765342548044,0.05681078,92682.0,92681.0,0.02914]
[1765342548234,0.07416078,92682.0,92681.0,0.02914]
[1765342549039,0.05709,92673.0,92672.0,0.05836185]
[1765342550336,0.05809,92673.0,92672.0,0.00016185]
[1765342551237,0.05909,92673.0,92672.0,0.00016185]
[1765342560058,0.05909,92673.0,92672.0,0.05816185]
[1765342562053,0.002,92673.0,92672.0,0.05816185]
[1765342564357,0.05797,92673.0,92672.0,0.05816185]
[1765342565560,0.002,92673.0,92672.0,0.05816185]
[1765342567256,0.02944,92673.0,92672.0,0.05816185]
[1765342567458,0.05819,92673.0,92672.0,0.05816185]
[1765342567661,0.0599,92673.0,92672.0,0.05816185]
[1765342575659,0.0706897,92673.0,92672.0,0.00016185]
[1765342576660,0.0579,92661.0,92660.0,0.0968787]
[1765342576958,0.0579,92661.0,92660.0,0.02788]
[1765342577566,0.01705,92664.0,92654.0,0.0681219]
[1765342577567,0.0579,92655.0,92654.0,0.0681219]
[1765342579568,0.0579,92655.0,92654.0,0.0691219]
[1765342579966,0.0579,92655.0,92654.0,0.0721219]
[1765342581055,0.0579,92655.0,92654.0,0.0691219]
[1765342581370,0.0462,92664.0,92663.0,0.0681209]
[1765342581966,0.07495,92664.0,92663.0,0.0681209]
[1765342583572,0.07495,92664.0,92663.0,0.0691209]
[1765342584570,0.07495,92664.0,92663.0,0.0681209]
[1765342584869,0.08507195,92670.0,92669.0,0.05874]
[1765342585073,0.08507195,92670.0,92669.0,0.0292]
[1765342586071,0.08607195,92670.0,92669.0,0.0292]
[1765342587161,0.08607195,92670.0,92669.0,0.05874]
[1765342589076,0.07528185,92670.0,92669.0,0.05874]
[1765342589574,0.00116185,92670.0,92669.0,0.05874]
[1765342589874,0.03005185,92670.0,92669.0,0.05874]
[1765342590770,0.03005185,92670.0,92669.0,0.0877381]
[1765342590977,0.07548185,92670.0,92669.0,0.0877381]
[1765342591162,0.07548185,92670.0,92669.0,0.05874]
[1765342591974,0.07548185,92670.0,92669.0,0.08773921]
[1765342592471,0.07548185,92670.0,92669.0,0.05819921]
[1765342592666,0.07548185,92670.0,92665.0,0.03865502]
[1765342592667,0.05707,92668.0,92667.0,0.02899921]
[1765342592866,0.0678604,92667.0,92666.0,0.02899921]
[1765342593063,0.0851108,92664.0,92663.0,0.02899921]
[1765342593278,0.05707,92663.0,92662.0,0.02899921]
[1765342593574,0.0678613,92659.0,92658.0,0.02899921]
[1765342593774,0.0678613,92659.0,92658.0,0.05819921]
[1765342594077,0.0678613,92659.0,92658.0,0.08773921]
[1765342594779,0.05707,92659.0,92658.0,0.10053071]
[1765342594976,0.05707,92659.0,92658.0,0.0725315]
[1765342595676,0.05707,92659.0,92658.0,0.0715315]
[1765342596380,0.05707,92659.0,92658.0,0.0705315]
[1765342596775,0.0678613,92659.0,92658.0,0.05874]
[1765342597075,0.0678613,92659.0,92658.0,0.05974]
[1765342598580,0.05707,92659.0,92658.0,0.0705315]
[1765342601280,0.05707,92659.0,92658.0,0.0302]
[1765342601671,0.05707,92659.0,92658.0,0.05974]
[1765342606487,0.05907,92659.0,92658.0,0.05974]
[1765342606980,0.05907,92659.0,92658.0,0.05874]
[1765342606981,0.002,92659.0,92658.0,0.05874]
[1765342607185,0.07432,92664.0,92663.0,0.0695309]
[1765342609902,0.07632,92664.0,92663.0,0.0695309]
[1765342617503,0.0871108,92664.0,92663.0,0.05874]
[1765342620096,0.0871108,92664.0,92663.0,0.08777824]
[1765342620403,0.07632,92664.0,92663.0,0.08777824]
[1765342621393,0.07632,92664.0,92663.0,0.05874]
[1765342621803,0.07632,92664.0,92663.0,0.0695309]
[1765342624000,0.04825,92664.0,92663.0,0.10818592]
[1765342624803,0.07704,92664.0,92663.0,0.0695309]
[1765342625003,0.07704,92664.0,92663.0,0.10818592]
[1765342625199,0.07704,92664.0,92663.0,0.0695309]
[1765342631401,0.0878308,92664.0,92663.0,0.0695309]
[1765342634311,0.0878308,92664.0,92663.0,0.05874]
[1765342634609,0.0878308,92664.0,92663.0,0.0292]
[1765342635199,0.0878308,92664.0,92663.0,0.05779]
[1765342635604,0.0878308,92664.0,92663.0,0.0685809]
[1765342635807,0.0878308,92664.0,92663.0,0.05779]
[1765342640414,0.0878308,92664.0,92663.0,0.027]
[1765342640712,0.0878308,92664.0,92663.0,0.05559]
[1765342640913,0.0878308,92664.0,92663.0,0.0663809]
[1765342641316,0.07704,92664.0,92663.0,0.0663809]
[1765342644414,0.07704,92664.0,92663.0,0.05559]
[1765342652319,0.0107909,92663.0,92661.0,0.03865502]
[1765342652523,0.0679211,92661.0,92660.0,0.03865502]
[1765342652815,0.0679211,92661.0,92660.0,0.02886]
[1765342653220,0.0679211,92661.0,92660.0,0.05667]
[1765342654122,0.0679211,92661.0,92660.0,0.05767]
[1765342654424,0.05713,92661.0,92660.0,0.05767]
[1765342655425,0.05713,92661.0,92660.0,0.09632502]
[1765342655924,0.05913,92661.0,92660.0,0.09632502]
[1765342656422,0.05913,92661.0,92660.0,0.05767]
[1765342659518,0.002,92661.0,92660.0,0.05767]
[1765342660227,0.02975,92661.0,92660.0,0.05767]
[1765342660728,0.05913,92661.0,92660.0,0.05767]
[1765342664416,0.05913,92661.0,92660.0,0.001]
[1765342664721,0.07488,92652.0,92651.0,0.00016185]
[1765342664915,0.05713,92643.0,92642.0,0.02909919]
[1765342665116,0.0679241,92635.0,92634.0,0.08576919]
[1765342665323,0.0679241,92635.0,92634.0,0.09576919]
[1765342666124,0.0679241,92635.0,92634.0,0.06667]
[1765342666629,0.0679241,92635.0,92634.0,0.05667]
[1765342666929,0.0689241,92635.0,92634.0,0.05667]
[1765342668425,0.0679241,92635.0,92634.0,0.05667]
[1765342668823,0.0679252,92626.0,92625.0,0.08593104]
[1765342669026,0.0679252,92626.0,92625.0,0.11683185]
[1765342669628,0.0679252,92626.0,92625.0,0.05683185]
[1765342669827,0.0679252,92626.0,92625.0,0.06683185]
[1765342670235,0.05713,92626.0,92625.0,0.07762715]
[1765342671736,0.05713,92626.0,92625.0,0.06683185]
[1765342671931,0.05813,92626.0,92625.0,0.06683185]
[1765342672532,0.05913,92626.0,92625.0,0.06683185]
[1765342672938,0.05813,92626.0,92625.0,0.06683185]
[1765342673234,0.05913,92626.0,92625.0,0.06683185]
[1765342675030,0.05813,92626.0,92625.0,0.06683185]
[1765342675230,0.05913,92626.0,92625.0,0.06683185]
[1765342676230,0.05813,92626.0,92625.0,0.06683185]
[1765342676429,0.05913,92626.0,92625.0,0.06683185]
[1765342676737,0.05813,92626.0,92625.0,0.06683185]
[1765342676939,0.05913,92626.0,92625.0,0.06683185]
[1765342678142,0.05913,92626.0,92625.0,0.00016185]
[1765342678528,0.05813,92626.0,92625.0,0.00016185]
[1765342678727,0.05913,92626.0,92625.0,0.00016185]
[1765342678933,0.05813,92626.0,92625.0,0.00016185]
[1765342679134,0.05913,92626.0,92625.0,0.00016185]
[1765342679341,0.05913,92626.0,92625.0,0.02975185]
[1765342679542,0.05813,92626.0,92625.0,0.02975185]
[1765342679839,0.06013,92626.0,92625.0,0.02975185]
[1765342680232,0.06013,92626.0,92625.0,0.05835185]
[1765342680537,0.05913,92626.0,92625.0,0.05835185]
[1765342680738,0.06113,92626.0,92625.0,0.05835185]
[1765342681135,0.05913,92626.0,92625.0,0.05835185]
[1765342681637,0.06013,92626.0,92625.0,0.05835185]
[1765342681836,0.05913,92626.0,92625.0,0.05835185]
[1765342682032,0.002,92626.0,92625.0,0.05835185]
[1765342682237,0.06067,92626.0,92625.0,0.05835185]
[1765342683830,0.05967,92626.0,92625.0,0.05835185]
[1765342684032,0.05967,92626.0,92625.0,0.00016185]
[1765342684432,0.05867,92626.0,92625.0,0.00016185]
[1765342685148,0.05967,92626.0,92625.0,0.00016185]
[1765342685647,0.06367,92626.0,92625.0,0.00016185]
[1765342686150,0.06067,92626.0,92625.0,0.00016185]
[1765342686339,0.06367,92626.0,92625.0,0.00016185]
[1765342688143,0.06167,92626.0,92625.0,0.00016185]
[1765342688343,0.06367,92626.0,92625.0,0.00016185]
[1765342691241,0.06367,92626.0,92625.0,0.05962185]
[1765342691551,0.06467,92626.0,92625.0,0.05962185]
[1765342692552,0.06267,92626.0,92625.0,0.05962185]
[1765342693251,0.06167,92626.0,92625.0,0.05962185]
[1765342694045,0.05967,92626.0,92625.0,0.05962185]
[1765342694244,0.05967,92626.0,92625.0,0.08864335]
[1765342694444,0.05867,92626.0,92625.0,0.08864335]
[1765342694856,0.05867,92626.0,92625.0,0.05962185]
[1765342698652,0.05967,92626.0,92625.0,0.05962185]
[1765342699759,0.06067,92626.0,92625.0,0.05962185]
[1765342700052,0.05967,92626.0,92625.0,0.05962185]
[1765342700660,0.06067,92626.0,92625.0,0.05962185]
[1765342701659,0.05867,92626.0,92625.0,0.05962185]
[1765342704760,0.05867,92626.0,92625.0,0.00016185]
[1765342706159,0.05967,92626.0,92625.0,0.00016185]
[1765342706362,0.06067,92626.0,92625.0,0.00016185]
[1765342706753,0.05967,92626.0,92625.0,0.00016185]
[1765342706958,0.06067,92626.0,92625.0,0.00016185]
[1765342707154,0.06367,92626.0,92625.0,0.05759185]
[1765342707569,0.06167,92626.0,92625.0,0.05759185]
[1765342707766,0.06267,92626.0,92625.0,0.05759185]
[1765342707967,0.05967,92626.0,92625.0,0.05759185]
[1765342708176,0.06067,92626.0,92625.0,0.05759185]
[1765342709174,0.05967,92626.0,92625.0,0.05759185]
[1765342709362,0.06067,92626.0,92625.0,0.05759185]
[1765342709970,0.06067,92626.0,92625.0,0.05508185]
[1765342710273,0.06067,92626.0,92625.0,0.0938801]
[1765342711167,0.05967,92626.0,92625.0,0.0938801]
[1765342711367,0.06067,92626.0,92625.0,0.0938801]
[1765342712065,0.05967,92626.0,92625.0,0.0938801]
[1765342712270,0.05967,92626.0,92625.0,0.0688501]
[1765342712271,0.06067,92626.0,92625.0,0.0688501]
[1765342712472,0.06067,92626.0,92625.0,0.03005185]
[1765342714074,0.06067,92626.0,92625.0,0.02928185]
[1765342715276,0.06067,92626.0,92625.0,0.03170185]
[1765342716965,0.06067,92626.0,92625.0,0.00510185]
[1765342717675,0.06067,92626.0,92625.0,0.00365]
[1765342718666,0.0665457,92622.0,92621.0,0.05110377]
[1765342720476,0.0665457,92622.0,92621.0,0.04974377]
[1765342721176,0.066546,92619.0,92618.0,0.010796]
[1765342721477,0.066546,92619.0,92618.0,0.040796]
[1765342721777,0.066546,92619.0,92618.0,0.03]
[1765342721961,0.066546,92619.0,92618.0,0.00253]
[1765342722579,0.066546,92619.0,92618.0,0.00113]
[1765342723777,0.0107964,92616.0,92615.0,0.00081168]
[1765342723979,0.0831164,92616.0,92615.0,0.07081168]
[1765342724972,0.0831164,92616.0,92615.0,0.06970168]
[1765342725979,0.0831164,92616.0,92615.0,0.06920168]
[1765342726187,0.0831164,92616.0,92615.0,0.05834168]
[1765342727374,0.05575,92607.0,92606.0,0.0107974]
[1765342727683,0.01657,92600.0,92597.0,0.13034468]
[1765342727884,0.01657,92600.0,92597.0,0.36]
[1765342728374,0.01657,92600.0,92598.0,0.0107984]
[1765342728575,0.01657,92600.0,92598.0,0.4107984]
[1765342729680,0.01657,92600.0,92598.0,0.1507984]
[1765342729885,0.01657,92600.0,92598.0,0.1527984]
[1765342730383,0.01657,92600.0,92598.0,0.1537984]
[1765342731377,0.01657,92600.0,92598.0,0.1557984]
[1765342731883,0.01657,92600.0,92598.0,0.1527984]
[1765342732089,0.01657,92600.0,92598.0,0.1547984]
[1765342732691,0.04487,92600.0,92598.0,0.1547984]
[1765342733284,0.01657,92600.0,92598.0,0.1047984]
[1765342733592,0.01657,92600.0,92598.0,0.4447984]
[1765342735892,0.01657,92604.0,92603.0,0.0107979]
[1765342736191,0.01657,92604.0,92603.0,0.0907979]
[1765342737000,0.01657,92604.0,92603.0,0.0917979]
[1765342738085,0.05285,92604.0,92603.0,0.0917979]
[1765342738285,0.01657,92604.0,92603.0,0.0927979]
[1765342738994,0.01657,92604.0,92603.0,0.0917979]